bitfinex/quotes_BTCUSD_20251231
["timestamp","ask_amount","ask_price","bid_price","bid_amount"]
[1767185737043,0.0002,88784.0,88775.0,0.0563216]
[1767185737449,0.01108041,88785.0,88774.0,0.52663644]
[1767185737650,0.01108041,88785.0,88775.0,0.0002]
[1767185738166,0.01108041,88785.0,88770.0,0.26100189]
[1767185738546,0.24853,88785.0,88771.0,0.01126494]
[1767185739668,0.24853,88785.0,88770.0,0.32859216]
[1767185739864,0.24853,88785.0,88770.0,0.27226695]
[1767185740080,0.24853,88785.0,88770.0,0.26100189]
[1767185743627,0.24853,88785.0,88768.0,0.01128]
[1767185744007,0.24853,88785.0,88770.0,0.26100189]
[1767185746852,0.24753107,88785.0,88770.0,0.26100189]
[1767185747696,0.24753107,88785.0,88768.0,0.01128]
[1767185747901,0.24753107,88785.0,88770.0,0.26100189]
[1767185750958,0.24753107,88785.0,88770.0,0.51534189]
[1767185751138,0.24753107,88785.0,88770.0,0.25434]
[1767185751340,0.24753107,88785.0,88770.0,0.26100189]
[1767185752948,0.01128,88784.0,88775.0,0.26100189]
[1767185753148,0.01128,88783.0,88775.0,0.26100189]
[1767185753389,0.01128,88783.0,88772.0,0.01126481]
[1767185753390,0.010731,88783.0,88772.0,0.01126481]
[1767185753578,0.00973207,88783.0,88771.0,0.32192851]
[1767185753781,0.00973207,88783.0,88773.0,0.25434]
[1767185754552,0.00873314,88783.0,88773.0,0.25434]
[1767185755582,0.00773421,88783.0,88773.0,0.25434]
[1767185756204,0.01128,88784.0,88775.0,0.25434]
[1767185756723,0.01028107,88784.0,88775.0,0.25434]
[1767185757941,0.00928214,88784.0,88775.0,0.25434]
[1767185758535,0.00928214,88784.0,88772.0,0.26560481]
[1767185759009,0.00828321,88784.0,88772.0,0.3219287]
[1767185759867,0.53566189,88790.0,88772.0,0.3219287]
[1767185760085,0.01128,88789.0,88773.0,0.01126468]
[1767185760284,0.01128,88789.0,88773.0,0.26560468]
[1767185761716,0.01128,88789.0,88774.0,0.01126455]
[1767185762155,0.01128,88789.0,88775.0,0.01126443]
[1767185762354,0.01128,88789.0,88776.0,0.0112643]
[1767185762541,0.01128,88789.0,88777.0,0.25434]
[1767185763248,0.27486,88795.0,88777.0,0.25434]
[1767185763502,0.27466,88793.0,88777.0,0.25434]
[1767185763762,0.27466,88793.0,88780.0,0.26100189]
[1767185763763,0.01128,88792.0,88780.0,0.26100189]
[1767185763950,0.01128,88792.0,88777.0,0.01126417]
[1767185764244,0.01128,88792.0,88778.0,0.00675863]
[1767185764468,0.01128,88792.0,88780.0,0.26100189]
[1767185765150,0.01128,88791.0,88780.0,0.26100189]
[1767185765706,0.01028107,88791.0,88779.0,0.01126392]
[1767185765930,0.01028107,88791.0,88780.0,0.26100189]
[1767185766127,0.01028107,88791.0,88780.0,0.27226568]
[1767185766331,0.01028107,88791.0,88779.0,0.25434]
[1767185766741,0.26100189,88790.0,88779.0,0.25434]
[1767185766947,0.01128,88791.0,88779.0,0.25434]
[1767185767144,0.26100189,88790.0,88779.0,0.25434]
[1767185767653,0.27466,88789.0,88775.0,0.06758616]
[1767185767823,0.000549,88779.0,88769.0,0.01126519]
[1767185767974,0.26100189,88780.0,88769.0,0.01126519]
[1767185768185,0.26100189,88780.0,88769.0,1.005459]
[1767185768410,0.26100189,88780.0,88769.0,0.603]
[1767185769061,0.26100189,88780.0,88768.0,0.01128]
[1767185769387,0.53566189,88780.0,88769.0,0.323959]
[1767185769548,0.27466,88779.0,88766.0,0.01126557]
[1767185769930,0.27466,88779.0,88767.0,0.01126544]
[1767185771402,0.27466,88779.0,88766.0,0.06759326]
[1767185771534,0.27466,88779.0,88766.0,0.01126557]
[1767185772346,0.27466,88779.0,88768.0,0.01126532]
[1767185772562,0.27466,88779.0,88767.0,0.06759267]
[1767185772763,0.27466,88779.0,88766.0,0.01126557]
[1767185773676,0.27466,88779.0,88767.0,0.01126544]
[1767185774008,0.27466,88779.0,88768.0,0.01126532]
[1767185774209,0.27466,88779.0,88768.0,0.06759162]
[1767185774419,0.27466,88779.0,88769.0,0.01126519]
[1767185775622,0.27466,88779.0,88767.0,0.05632672]
[1767185776154,0.27466,88779.0,88768.0,0.01126532]
[1767185776290,0.27466,88779.0,88767.0,0.01126544]
[1767185776875,0.27466,88779.0,88766.0,0.01128]
[1767185777074,0.27466,88779.0,88766.0,0.02254557]
[1767185777566,0.27466,88779.0,88766.0,0.01128]
[1767185778752,0.17366,88779.0,88766.0,0.01128]
[1767185781948,0.17366,88779.0,88764.0,0.01128]
[1767185786474,0.04866,88779.0,88764.0,0.01128]
[1767185786866,0.01128,88783.0,88764.0,0.32036]
[1767185787063,0.25994665,88780.0,88764.0,0.32036]
[1767185788048,0.25894772,88780.0,88764.0,0.32036]
[1767185789315,0.25794879,88780.0,88765.0,0.0112657]
[1767185789516,0.25794879,88780.0,88764.0,0.33162582]
[1767185789721,0.25794879,88780.0,88768.0,0.06759164]
[1767185790302,0.25694986,88780.0,88768.0,0.06759164]
[1767185790503,0.25694986,88780.0,88768.0,0.01126532]
[1767185790907,0.25694986,88780.0,88769.0,0.01126519]
[1767185791107,0.25694986,88780.0,88769.0,0.06759104]
[1767185791287,0.25595093,88780.0,88769.0,0.06759104]
[1767185791485,0.01128,88783.0,88769.0,0.06759104]
[1767185791690,0.26094558,88780.0,88770.0,0.01126506]
[1767185791912,0.01128,88782.0,88766.0,0.03891]
[1767185792115,0.0002,88780.0,88767.0,0.06759267]
[1767185792425,0.25914751,88780.0,88768.0,0.01126532]
[1767185792629,0.33075,88781.0,88769.0,0.01126519]
[1767185792797,0.33075,88781.0,88770.0,0.01126506]
[1767185793132,0.01128,88782.0,88770.0,0.01126506]
[1767185793632,0.33075,88787.0,88771.0,0.01126494]
[1767185793838,0.01128,88786.0,88771.0,0.01126494]
[1767185794045,0.01128,88786.0,88770.0,0.12963029]
[1767185794609,0.00928214,88786.0,88770.0,0.06204]
[1767185794815,0.33075,88787.0,88770.0,0.07330506]
[1767185795066,0.33075,88787.0,88771.0,0.01126494]
[1767185795222,0.33075,88787.0,88770.0,0.12963025]
[1767185795737,0.32975107,88787.0,88771.0,0.01126494]
[1767185796255,0.26094558,88781.0,88770.0,0.06204]
[1767185796416,0.26094558,88781.0,88770.0,0.07330506]
[1767185796809,0.25894807,88781.0,88770.0,0.07330506]
[1767185797306,0.25894807,88781.0,88771.0,0.01126494]
[1767185797506,0.01128,88786.0,88772.0,0.01126481]
[1767185797709,0.01128,88786.0,88770.0,0.12963035]
[1767185797710,0.26094558,88782.0,88770.0,0.06204]
[1767185797913,0.52189116,88780.0,88763.0,0.01126595]
[1767185798130,0.33075,88779.0,88765.0,0.0225457]
[1767185798359,0.26094558,88775.0,88765.0,0.01128]
[1767185798924,0.25994665,88775.0,88765.0,0.01128]
[1767185799314,0.25994665,88775.0,88765.0,0.0225457]
[1767185799506,0.25994665,88775.0,88766.0,0.01126557]
[1767185799762,0.33075,88783.0,88766.0,0.01126557]
[1767185799970,0.26094558,88776.0,88765.0,0.01128]
[1767185800146,0.26094558,88780.0,88765.0,0.0225457]
[1767185800349,0.26094558,88780.0,88765.0,0.01128]
[1767185800350,0.26094558,88775.0,88765.0,0.01128]
[1767185800736,0.59169558,88775.0,88765.0,0.01128]
[1767185801158,0.59069665,88775.0,88765.0,0.01128]
[1767185801881,0.0002,88768.0,88765.0,0.01128]
[1767185802656,0.0002,88768.0,88766.0,0.00901449]
[1767185802857,0.33075,88775.0,88766.0,0.00901449]
[1767185803827,0.32975107,88775.0,88766.0,0.00901449]
[1767185804032,0.32875214,88775.0,88766.0,0.00901449]
[1767185804356,0.06875214,88775.0,88766.0,0.00901449]
[1767185804857,0.06875214,88775.0,88765.0,0.0225457]
[1767185805104,0.06680397,88775.0,88765.0,0.01128]
[1767185805303,0.06680397,88775.0,88765.0,0.0225457]
[1767185805492,0.06680397,88775.0,88765.0,0.01128]
[1767185806098,0.00952383,88779.0,88765.0,0.0225457]
[1767185806279,0.34027383,88779.0,88765.0,0.0225457]
[1767185806681,0.34027383,88779.0,88766.0,0.01126557]
[1767185807122,0.3392749,88779.0,88766.0,0.0675934]
[1767185807286,0.33827597,88779.0,88766.0,0.0675934]
[1767185807667,0.33823444,88779.0,88766.0,0.0675934]
[1767185807877,0.33823444,88779.0,88767.0,0.01126544]
[1767185808074,0.33823444,88779.0,88766.0,0.0675934]
[1767185808314,0.33623658,88779.0,88765.0,0.0225457]
[1767185808517,0.33075,88779.0,88767.0,0.01126544]
[1767185808720,0.33075,88779.0,88765.0,0.0225457]
[1767185808920,0.33075,88779.0,88765.0,0.01128]
[1767185809336,0.32875212,88779.0,88765.0,0.01128]
[1767185809745,0.32875212,88779.0,88764.0,0.01128]
[1767185810114,0.32875212,88779.0,88764.0,0.02254582]
[1767185810309,0.32775319,88779.0,88764.0,0.02254582]
[1767185810515,0.32675426,88779.0,88764.0,0.02254582]
[1767185810730,0.33803426,88779.0,88764.0,0.01128]
[1767185811134,0.32675426,88779.0,88765.0,0.01]
[1767185811333,0.33803426,88779.0,88765.0,0.01]
[1767185811646,0.33703533,88779.0,88765.0,0.01]
[1767185812657,0.3360364,88779.0,88765.0,0.01]
[1767185813651,0.33503747,88779.0,88765.0,0.01]
[1767185814558,0.33403854,88779.0,88765.0,0.01]
[1767185815620,0.33303961,88779.0,88765.0,0.01]
[1767185816654,0.33204068,88779.0,88765.0,0.01]
[1767185817753,0.33104175,88779.0,88765.0,0.01]
[1767185817933,0.33104175,88779.0,88763.0,0.01128]
[1767185818142,0.38343,88772.0,88763.0,0.01136788]
[1767185818363,0.38343,88772.0,88763.0,8.788e-05]
[1767185818714,0.38243107,88772.0,88763.0,8.788e-05]
[1767185820024,0.38143214,88772.0,88763.0,8.788e-05]
[1767185820960,0.38043321,88772.0,88763.0,8.788e-05]
[1767185824535,0.39171321,88772.0,88763.0,8.788e-05]
[1767185824898,0.39171321,88772.0,88763.0,0.00731367]
[1767185825093,0.39171321,88772.0,88756.0,0.01128]
[1767185825312,0.39178104,88772.0,88757.0,0.01126671]
[1767185825542,0.39158143,88772.0,88756.0,0.06760105]
[1767185826582,0.39158143,88772.0,88757.0,0.01126671]
[1767185827212,0.39158143,88772.0,88756.0,0.06760105]
[1767185827819,0.39158143,88772.0,88757.0,0.01126671]
[1767185828037,0.39158143,88772.0,88756.0,0.06760105]
[1767185828224,0.3905825,88772.0,88756.0,0.01126684]
[1767185828398,0.3905825,88772.0,88755.0,0.02376697]
[1767185828602,0.3905825,88772.0,88755.0,0.01128]
[1767185829346,0.01134783,88772.0,88755.0,0.01128]
[1767185829582,0.38343,88786.0,88772.0,0.000549]
[1767185829792,0.38343,88784.0,88758.0,0.02832]
[1767185829992,0.38343,88781.0,88762.0,0.0002]
[1767185836131,0.38343,88781.0,88764.0,0.06759441]
[1767185836343,0.38343,88781.0,88765.0,0.0112657]
[1767185836553,0.01128,88780.0,88765.0,0.0112657]
[1767185836850,0.01128,88780.0,88764.0,0.01126582]
[1767185837058,0.38343,88780.0,88764.0,0.00104]
[1767185837186,0.0002,88782.0,88767.0,0.00104]
[1767185837405,0.01128,88781.0,88767.0,0.00104]
[1767185838187,0.00928214,88781.0,88767.0,0.00104]
[1767185839423,0.00258927,88781.0,88767.0,0.00104]
[1767185840240,0.00258927,88781.0,88767.0,0.01230544]
[1767185840401,0.00059141,88781.0,88767.0,0.01230544]
[1767185840620,0.00059141,88781.0,88767.0,0.00104]
[1767185841636,0.00987354,88780.0,88767.0,0.01230544]
[1767185841834,0.00987354,88780.0,88767.0,0.00104]
[1767185842037,0.00987354,88780.0,88767.0,0.01230544]
[1767185842437,0.44034,88781.0,88768.0,0.01126532]
[1767185842652,0.01128,88780.0,88767.0,0.06863239]
[1767185842827,0.00565419,88780.0,88767.0,0.06863239]
[1767185843035,0.00565419,88780.0,88767.0,0.01230544]
[1767185843744,0.00365633,88780.0,88767.0,0.01230544]
[1767185844151,0.44034,88781.0,88768.0,0.01126532]
[1767185844333,0.00568,88780.0,88768.0,0.01126532]
[1767185844532,8e-05,88780.0,88769.0,0.01126519]
[1767185844734,0.44969818,88781.0,88767.0,0.06863206]
[1767185844940,0.44969818,88781.0,88768.0,0.01126532]
[1767185845340,0.44969818,88781.0,88766.0,0.05632785]
[1767185845596,0.44969818,88781.0,88766.0,0.01126557]
[1767185845744,0.44770032,88781.0,88765.0,0.0112657]
[1767185845940,0.44770032,88781.0,88765.0,0.067594]
[1767185846268,0.44770032,88781.0,88765.0,0.0112657]
[1767185846470,0.44770032,88781.0,88765.0,0.1049542]
[1767185846840,0.44570246,88781.0,88766.0,0.01126557]
[1767185847280,0.44570246,88781.0,88765.0,0.0486257]
[1767185847484,0.44570246,88781.0,88766.0,0.01126557]
[1767185848025,0.4437046,88781.0,88766.0,0.01126557]
[1767185849167,0.44170674,88781.0,88766.0,0.01126557]
[1767185849388,0.44170674,88781.0,88765.0,0.10495403]
[1767185849750,0.44170674,88781.0,88766.0,0.01126557]
[1767185850353,0.43970888,88781.0,88766.0,0.01126557]
[1767185850562,0.43970888,88781.0,88765.0,0.09368841]
[1767185850770,0.43970888,88781.0,88766.0,0.01126557]
[1767185850941,0.43970888,88781.0,88765.0,0.0486257]
[1767185851302,0.43781088,88781.0,88765.0,0.0486257]
[1767185851504,0.43781088,88781.0,88765.0,0.10495371]
[1767185851706,0.43781088,88781.0,88766.0,0.01126557]
[1767185851901,0.43781088,88781.0,88765.0,0.10495416]
[1767185852139,0.43781088,88781.0,88766.0,0.01126557]
[1767185852340,0.43781088,88781.0,88765.0,0.0486257]
[1767185852903,0.43781088,88781.0,88766.0,0.01126557]
[1767185853102,0.43781088,88781.0,88766.0,0.01]
[1767185853601,0.42653088,88781.0,88766.0,0.01126557]
[1767185853809,0.01128,88780.0,88766.0,0.06759222]
[1767185854036,0.42653088,88781.0,88766.0,0.06759222]
[1767185854371,0.01128,88779.0,88765.0,0.0112657]
[1767185854930,0.01128,88779.0,88766.0,0.01126557]
[1767185855242,0.01128,88779.0,88765.0,0.06759373]
[1767185855475,0.01128,88779.0,88766.0,0.01126557]
[1767185855672,0.01128,88779.0,88765.0,0.49721373]
[1767185856032,0.01128,88779.0,88765.0,0.4408857]
[1767185856335,0.01128,88779.0,88766.0,0.01126557]
[1767185857294,0.01128,88779.0,88765.0,0.42962]
[1767185857704,0.01128,88779.0,88765.0,0.49721379]
[1767185858012,0.01128,88779.0,88766.0,0.06759337]
[1767185858312,0.01128,88779.0,88765.0,0.42962]
[1767185858501,0.01128,88779.0,88765.0,0.4408857]
[1767185858654,0.01128,88779.0,88765.0,0.49721402]
[1767185859108,0.01128,88779.0,88766.0,0.01126557]
[1767185859982,0.01128,88779.0,88764.0,0.01128]
[1767185860188,0.0002,88771.0,88765.0,0.0112657]
[1767185860382,0.0002,88771.0,88764.0,0.08493036]
[1767185860570,0.0002,88771.0,88764.0,0.02860127]
[1767185860770,0.0002,88771.0,88764.0,0.08493039]
[1767185860993,0.0002,88771.0,88764.0,0.01733545]
[1767185861195,0.0002,88771.0,88764.0,0.02254582]
[1767185861390,0.0002,88771.0,88764.0,0.01128]
[1767185861592,0.0002,88771.0,88764.0,0.02254582]
[1767185862241,0.0002,88782.0,88765.0,0.0112657]
[1767185862358,0.01128,88781.0,88766.0,0.04338]
[1767185862804,0.01128,88781.0,88766.0,0.05464557]
[1767185863231,0.01128,88781.0,88766.0,0.04338]
[1767185863411,0.01128,88781.0,88766.0,0.05464557]
[1767185864016,0.01128,88781.0,88767.0,0.01126544]
[1767185864211,0.01128,88781.0,88766.0,0.1109733]
[1767185864392,0.01128,88781.0,88766.0,0.05464557]
[1767185864936,0.01148,88782.0,88767.0,4.6557]
[1767185865094,0.0002,88782.0,88768.0,4.70195]
[1767185865295,0.0002,88782.0,88768.0,0.04625]
[1767185866333,0.0002,88782.0,88769.0,0.04625]
[1767185867236,0.0002,88782.0,88766.0,0.01126557]
[1767185867418,0.0002,88782.0,88766.0,4.71321557]
[1767185867733,0.0002,88782.0,88766.0,0.05751557]
[1767185867933,0.0002,88782.0,88767.0,4.6557]
[1767185868235,0.0002,88782.0,88767.0,4.66696544]
[1767185868384,0.0002,88782.0,88768.0,4.6557]
[1767185869228,0.0002,88782.0,88768.0,0.01126532]
[1767185870038,0.0002,88782.0,88772.0,0.01126481]
[1767185870237,0.0002,88782.0,88769.0,0.06759101]
[1767185870419,0.0002,88782.0,88769.0,0.01126519]
[1767185870660,0.0002,88782.0,88770.0,0.01126506]
[1767185870998,0.42094,88783.0,88769.0,0.06759105]
[1767185871195,0.37824,88783.0,88770.0,0.06759019]
[1767185871349,0.37824,88783.0,88771.0,0.01126494]
[1767185871973,0.37824,88783.0,88770.0,0.06759019]
[1767185872199,0.37824,88783.0,88773.0,0.01126468]
[1767185872412,0.0002,88795.0,88773.0,0.01126468]
[1767185872413,0.35765906,88788.0,88773.0,0.12062468]
[1767185872633,0.36893906,88788.0,88773.0,0.12062468]
[1767185872771,0.36893906,88788.0,88773.0,0.10936]
[1767185873601,0.36893906,88788.0,88772.0,0.01128]
[1767185879226,0.26273906,88788.0,88772.0,0.01128]
[1767185880390,0.24673906,88788.0,88772.0,0.01128]
[1767185880992,0.24673906,88788.0,88773.0,0.01126468]
[1767185881232,0.0002,88795.0,88772.0,0.50722481]
[1767185881432,0.0002,88795.0,88778.0,0.48468]
[1767185881639,0.22517403,88821.0,88778.0,0.48468]
[1767185881640,0.01125796,88826.0,88781.0,3.7031]
[1767185881798,0.00062806,88828.0,88779.0,0.01128]
[1767185881799,0.01125885,88819.0,88784.0,0.48468]
[1767185881999,0.49867,88818.0,88784.0,0.48468]
[1767185883742,0.49867,88818.0,88784.0,0.4847825]
[1767185884787,0.49867,88816.0,88784.0,0.4847825]
[1767185886973,0.49867,88814.0,88784.0,0.4847825]
[1767185888875,0.49867,88812.0,88784.0,0.0001025]
[1767185889078,0.0004465,88784.0,88779.0,0.01128]
[1767185889495,0.49867,88792.0,88779.0,0.01128]
[1767185889658,0.01128,88793.0,88779.0,0.01128]
[1767185889859,0.01128,88793.0,88779.0,0.49596]
[1767185905681,0.01128,88793.0,88774.0,0.0002]
[1767185905682,0.000447,88779.0,88774.0,0.0002]
[1767185905816,0.000447,88779.0,88772.0,0.0002849]
[1767185905817,0.48286021,88779.0,88772.0,0.0002849]
[1767185906271,0.48249,88779.0,88772.0,0.0002849]
[1767185906474,0.01128,88793.0,88772.0,0.0002849]
[1767185906665,0.48249,88792.0,88772.0,0.0002849]
[1767185916945,0.48249,88792.0,88772.0,0.0092849]
[1767185924704,0.48249,88792.0,88772.0,0.04309223]
[1767185929143,0.01128,88791.0,88773.0,0.45209]
[1767185929511,0.01128,88791.0,88773.0,0.48589489]
[1767185929750,0.01128,88791.0,88773.0,0.45209]
[1767185929964,0.01128,88791.0,88774.0,0.48589489]
[1767185930371,0.01128,88791.0,88774.0,0.45209]
[1767185930670,0.01128,88791.0,88775.0,0.03380489]
[1767185936220,0.49226,88793.0,88775.0,0.03380489]
[1767185936523,0.01128,88792.0,88775.0,0.03380489]
[1767185937521,0.01128,88792.0,88775.0,0.48589489]
[1767185937878,0.01128,88792.0,88775.0,0.45209]
[1767185938106,0.01128,88792.0,88776.0,0.03380489]
[1767185938772,0.50354,88792.0,88776.0,0.03380489]
[1767185942206,0.50354,88792.0,88776.0,0.48589489]
[1767185944209,0.50354,88792.0,88776.0,0.48616219]
[1767185945731,0.01128,88791.0,88776.0,0.4523573]
[1767185946130,0.01128,88791.0,88777.0,0.03380489]
[1767185946332,0.01128,88791.0,88777.0,0.03407219]
[1767185947079,0.01128,88791.0,88777.0,0.0002673]
[1767185948899,0.49226,88790.0,88777.0,0.0002673]
[1767185956336,0.01128,88789.0,88777.0,0.0002673]
[1767185958400,0.01091909,88789.0,88777.0,0.0002673]
[1767185960138,0.49485909,88789.0,88777.0,0.0002673]
[1767185979612,0.49485909,88789.0,88777.0,9.73e-05]
[1767185994574,0.01128,88788.0,88777.0,9.73e-05]
[1767186002501,0.01128,88788.0,88777.0,0.4612273]
[1767186002841,0.0002,88794.0,88788.0,0.000549]
[1767186003047,0.01128,88793.0,88782.0,0.46113]
[1767186004106,0.01132391,88793.0,88782.0,0.46113]
[1767186004522,0.01132391,88793.0,88772.0,0.04280576]
[1767186004723,0.01132391,88793.0,88773.0,0.46113]
[1767186005639,4.391e-05,88793.0,88773.0,0.46113]
[1767186005938,0.01128,88792.0,88773.0,0.46113]
[1767186006492,0.01128,88792.0,88773.0,0.47241]
[1767186006688,0.46971,88792.0,88773.0,0.47241]
[1767186008514,0.01128,88792.0,88773.0,0.47241]
[1767186011627,0.01128,88792.0,88773.0,0.46113]
[1767186011811,4.391e-05,88793.0,88773.0,0.46113]
[1767186012016,0.01128,88791.0,88773.0,0.46113]
[1767186012470,0.01128,88791.0,88772.0,0.02028]
[1767186012680,0.45843,88790.0,88772.0,0.02028]
[1767186013181,0.45843,88790.0,88772.0,0.009]
[1767186016670,0.01128,88789.0,88772.0,0.47013]
[1767186016875,0.01128,88789.0,88773.0,0.46113]
[1767186017266,0.45843,88790.0,88773.0,0.46113]
[1767186017267,0.01128,88788.0,88773.0,0.46113]
[1767186020124,4.391e-05,88793.0,88773.0,0.46113]
[1767186020415,0.01128,88792.0,88774.0,0.01128]
[1767186020713,0.01128,88792.0,88775.0,0.46206]
[1767186021314,0.01128,88792.0,88776.0,0.01128]
[1767186021476,0.01128,88792.0,88777.0,0.46206]
[1767186022194,0.01128,88792.0,88778.0,0.47334]
[1767186023191,0.01128,88792.0,88778.0,0.46206]
[1767186023513,0.01128,88792.0,88780.0,0.46206]
[1767186024098,0.26084282,88790.0,88780.0,0.46206]
[1767186024500,4.391e-05,88793.0,88790.0,0.000549]
[1767186024703,0.01128,88792.0,88782.0,0.46206]
[1767186025385,0.27212282,88792.0,88782.0,0.46206]
[1767186026314,0.01128,88792.0,88782.0,0.46206]
[1767186026522,0.01128,88792.0,88780.0,0.46206]
[1767186029337,0.26083762,88790.0,88780.0,0.46206]
[1767186030138,0.01128,88792.0,88780.0,0.46206]
[1767186030323,0.26083762,88790.0,88780.0,0.46206]
[1767186031159,0.26083762,88790.0,88779.0,0.01128]
[1767186032138,0.01128,88792.0,88779.0,0.01128]
[1767186032347,0.26083762,88790.0,88779.0,0.01128]
[1767186035370,0.01128,88792.0,88779.0,0.01128]
[1767186041390,0.01128,88792.0,88779.0,0.47334]
[1767186041602,0.01128,88791.0,88779.0,0.47334]
[1767186041806,4.391e-05,88793.0,88780.0,0.46206]
[1767186042012,0.01128,88792.0,88780.0,0.46206]
[1767186042607,0.01128,88791.0,88781.0,0.46206]
[1767186042831,0.01128,88791.0,88780.0,0.26083762]
[1767186042832,0.01128,88792.0,88780.0,0.46206]
[1767186043477,4.391e-05,88793.0,88780.0,0.46206]
[1767186043656,0.01128,88792.0,88780.0,0.46206]
[1767186049269,0.01132391,88793.0,88780.0,0.46206]
[1767186050744,4.391e-05,88793.0,88780.0,0.46206]
[1767186050916,0.01132391,88793.0,88780.0,0.46206]
[1767186051922,4.391e-05,88793.0,88780.0,0.46206]
[1767186052126,0.01132391,88793.0,88780.0,0.46206]
[1767186052332,0.01132391,88793.0,88780.0,0.47476]
[1767186058392,0.01132391,88793.0,88779.0,0.01128]
[1767186060333,4.391e-05,88793.0,88779.0,0.01128]
[1767186060539,0.01132391,88793.0,88779.0,0.01128]
[1767186062295,4.391e-05,88793.0,88779.0,0.48604]
[1767186062475,0.01132391,88793.0,88780.0,0.47476]
[1767186062674,4.391e-05,88793.0,88781.0,0.47476]
[1767186073217,4.391e-05,88793.0,88781.0,0.50856321]
[1767186075760,4.391e-05,88793.0,88781.0,0.47476]
[1767186076056,4.391e-05,88793.0,88781.0,0.50856321]
[1767186076260,4.391e-05,88793.0,88782.0,0.47476]
[1767186077037,4.391e-05,88793.0,88783.0,0.01128]
[1767186079643,4.391e-05,88793.0,88783.0,0.49766]
[1767186081579,0.47229,88798.0,88783.0,0.49766]
[1767186081580,0.47229,88798.0,88783.0,0.75849762]
[1767186081809,0.22515406,88829.0,88788.0,0.49764278]
[1767186081810,0.01128,88802.0,88788.0,0.49764278]
[1767186082146,0.01128,88804.0,88792.0,0.01126227]
[1767186082298,0.0002253,88805.0,88795.0,0.48638]
[1767186082927,0.0002253,88805.0,88796.0,0.03379636]
[1767186083309,0.0002253,88805.0,88796.0,0.52017636]
[1767186085676,0.0002253,88805.0,88796.0,0.48638]
[1767186085880,0.0002253,88805.0,88797.0,0.03379636]
[1767186086141,0.0002253,88805.0,88797.0,0.52017636]
[1767186086456,0.0002253,88805.0,88797.0,0.48638]
[1767186086867,0.0002253,88805.0,88798.0,0.01128]
[1767186087378,0.01128,88813.0,88798.0,0.49766]
[1767186088523,0.01128,88813.0,88800.0,0.26068764]
[1767186088724,0.46879,88816.0,88800.0,0.26068764]
[1767186088924,0.46879,88816.0,88804.0,0.26068764]
[1767186089086,0.46879,88816.0,88804.0,0.26064414]
[1767186089695,0.01128,88815.0,88805.0,0.03379358]
[1767186089880,0.01128,88815.0,88805.0,0.03375015]
[1767186090508,0.01128,88820.0,88805.0,0.52013015]
[1767186090787,0.46879,88826.0,88805.0,0.52013015]
[1767186090788,0.46879,88826.0,88805.0,0.52008974]
[1767186090986,0.01128,88822.0,88805.0,0.52008974]
[1767186092194,0.01128,88822.0,88805.0,0.48638]
[1767186092400,0.01128,88822.0,88806.0,0.01128]
[1767186093086,0.00062806,88828.0,88806.0,0.01128]
[1767186093087,0.46879,88813.0,88806.0,0.01128]
[1767186093219,0.46879,88813.0,88793.0,0.01128]
[1767186093424,0.46879,88813.0,88806.0,0.01128]
[1767186093669,0.46879,88813.0,88800.0,0.26068764]
[1767186094529,0.46879,88813.0,88801.0,0.03379445]
[1767186096464,0.46879,88813.0,88801.0,0.03375154]
[1767186101123,0.01128,88816.0,88776.0,0.0112643]
[1767186101124,0.46879,88810.0,88776.0,0.0112643]
[1767186101320,0.46879,88810.0,88774.0,0.01141075]
[1767186101321,0.46879,88792.0,88775.0,0.03380424]
[1767186101549,0.46879,88789.0,88775.0,0.03380424]
[1767186101812,0.46879,88789.0,88774.0,0.0001462]
[1767186112931,0.46879,88789.0,88774.0,0.0001035]
[1767186113133,0.01128,88791.0,88774.0,0.0001035]
[1767186113134,0.47509,88783.0,88774.0,0.0001035]
[1767186113336,0.47509,88781.0,88774.0,0.0001035]
[1767186114972,0.47509,88781.0,88774.0,6.154e-05]
[1767186116044,0.47509,88781.0,88774.0,2.034e-05]
[1767186122586,0.47509,88781.0,88772.0,0.00104222]
[1767186122800,0.47509,88781.0,88766.0,0.0001462]
[1767186122801,0.47509,88781.0,88766.0,0.0002594]
[1767186123022,0.27196764,88782.0,88766.0,0.0002594]
[1767186123023,0.47509,88779.0,88766.0,0.0002594]
[1767186123935,0.26068764,88776.0,88766.0,0.0002594]
[1767186124141,0.48637,88775.0,88761.0,0.00057319]
[1767186124344,0.48637,88775.0,88752.0,0.49056]
[1767186124345,0.47509,88769.0,88752.0,0.49056]
[1767186124684,0.47509,88769.0,88751.0,0.0002]
[1767186124685,0.47509,88761.0,88751.0,0.0002]
[1767186124845,0.01128,88760.0,88751.0,0.0002]
[1767186125428,0.48637,88760.0,88751.0,0.0002]
[1767186128070,0.485821,88760.0,88751.0,0.0002]
[1767186129253,0.010731,88760.0,88751.0,0.0002]
[1767186129704,0.01128,88759.0,88751.0,0.49076]
[1767186129901,0.01083623,88759.0,88752.0,0.49056]
[1767186130480,0.00010623,88759.0,88752.0,0.49056]
[1767186130677,0.01138623,88759.0,88752.0,0.49056]
[1767186130882,0.00010623,88759.0,88752.0,0.49056]
[1767186131100,0.01138623,88759.0,88752.0,0.49056]
[1767186135899,0.01138623,88759.0,88751.0,0.0002]
[1767186137762,0.48647623,88759.0,88741.0,0.49056]
[1767186138163,0.48647623,88759.0,88737.0,0.0002214]
[1767186138367,0.48647623,88759.0,88740.0,0.26068764]
[1767186138565,0.48647623,88759.0,88737.0,0.0002214]
[1767186138566,0.48764,88758.0,88737.0,0.0002214]
[1767186138934,0.48764,88758.0,88740.0,0.26068764]
[1767186139761,0.48764,88758.0,88740.0,0.73807764]
[1767186140193,0.01128,88757.0,88741.0,0.47739]
[1767186140389,0.01128,88756.0,88747.0,0.26068764]
[1767186141575,0.01128,88755.0,88747.0,0.26068764]
[1767186141875,0.01128,88755.0,88745.0,0.73807764]
[1767186143208,0.01128,88755.0,88746.0,0.47739]
[1767186143795,0.00010623,88759.0,88746.0,0.47739]
[1767186143981,0.00010623,88759.0,88740.0,0.26068764]
[1767186143982,0.00010623,88759.0,88755.0,0.47759]
[1767186144185,0.46602,88774.0,88756.0,0.47739]
[1767186144186,0.01128,88766.0,88756.0,0.47739]
[1767186145268,0.01128,88766.0,88756.0,0.73807764]
[1767186146635,0.01128,88766.0,88757.0,0.47739]
[1767186147649,0.30576764,88780.0,88756.0,0.26068764]